{"text_format":"2","workbook":"xlsx","n_sheets":8,"sheets":["Záradék","Összesítő","Falazás és egyéb kőműves munkák","Napelem,inv,artó","Elektromos energia ellátás, vil","Munka1","Munka2","Munka3"],"not_rendered":{"charts":0,"images":0,"macros":0,"external_links":0,"defined_names":0,"comments":0,"pivot_tables":0},"unopened":[],"bounds":{"document_bytes":16777216,"sheet_cells":100000,"run_cost":"one","rows_first":2000,"rows_last":500,"rows_between":2000,"halvings":0,"cell_chars":16384,"cell_head_chars":4096},"cells_cut":0,"cells_raw":0,"read":"whole","date_system":"1900"}

{"sheet":"Záradék","index":0,"n_rows":34,"n_cols":4,"rows_kept":34,"cut":false,"hidden":false,"merged":[[0,0,0,3],[1,0,1,3],[2,0,2,3],[3,0,3,3],[4,0,4,3],[5,0,5,3],[6,0,6,3],[21,0,21,3],[25,2,25,3],[26,2,26,3],[27,2,27,3],[33,2,33,3],[29,2,29,3]]}
{"$rows_empty":8}
["                                       ",null,"                                       "]
["                                       ",null,"                                       "]
["                                       ",null," Kelt:      2014. jún. 25.             "]
["                                       ",null,"                                       "]
["                                       ",null,"                                       "]
["                                       ",null," Teljesítés: 2014. IV. negyedév        "]
["A munka leírása:                       "]
["SZTE JUGYU Oktatási épület                                                             "]
["30 kWp"]
["                                                                              "]
["Készült: Helyszíni felmérés alapján                                             "]
["                                                                              "]
[]
["Költségvetés főösszesítő"]
["Megnevezés",null,"Anyagköltség","Díjköltség"]
["1. Építmény közvetlen költségei",null,{"$f":"ROUND(SUM(Összesítő!B2:B4),0)","v":0},{"$f":"ROUND(SUM(Összesítő!C2:C4),0)","v":0}]
["1.1 Közvetlen önköltség összesen",null,{"$f":"ROUND(C24,0)","v":0},{"$f":"ROUND(D24,0)","v":0}]
["2.1 ÁFA vetítési alap",null,{"$f":"ROUND(C25+D25,0)","v":0}]
["2.2 Áfa",0.27,{"$f":"ROUND(C26*B27,0)","v":0}]
["3.  A munka ára",null,{"$f":"ROUND(C26+C27,0)","v":0}]
[]
["Egységár nettó költség/kVA:",null,{"$f":"SUM(C26)/30","v":0}]
[]
[]
[]
[null,null,"Aláírás"]

{"sheet":"Összesítő","index":1,"n_rows":5,"n_cols":3,"rows_kept":5,"cut":false,"hidden":false,"merged":[]}
["Munkanem megnevezése","Anyag összege","Díj összege"]
["Falazás és egyéb kőműves munkák",{"$f":"'Falazás és egyéb kőműves munkák'!H5","v":0},{"$f":"'Falazás és egyéb kőműves munkák'!I5","v":0}]
["Napelemek, inverterek, tartószerkezetek",{"$f":"SUM('Napelem,inv,artó'!H10)","v":0},{"$f":"SUM('Napelem,inv,artó'!I10)","v":0}]
["Elektromos energia ellátás, világítás",{"$f":"'Elektromos energia ellátás, vil'!H51","v":0},{"$f":"'Elektromos energia ellátás, vil'!I51","v":0}]
["Összesen:",{"$f":"ROUND(SUM(B2:B4),0)","v":0},{"$f":"ROUND(SUM(C2:C4), 0)","v":0}]

{"sheet":"Falazás és egyéb kőműves munkák","index":2,"n_rows":5,"n_cols":9,"rows_kept":5,"cut":false,"hidden":false,"merged":[]}
["Ssz.","Tételszám","Tétel szövege","Menny.","Egység","Anyag egységár","Díj egységre","Anyag összesen","Díj összesen"]
[1,"33-063-1.3.1","Faláttörés 30x30 cm méretig, zsalukő beton vasalt falban,\n25 cm vastagságig helyreállítással",1,"db",null,null,{"$f":"ROUND(D2*F2, 0)","v":0},{"$f":"ROUND(D2*G2, 0)","v":0}]
[]
[2,"33-063-2.1.3","Födémáttörés 30x30 cm méretig, 30 cm födémvastagságig, vasbetonlemez födémben helyreállítással",2,"db",null,null,{"$f":"ROUND(D4*F4, 0)","v":0},{"$f":"ROUND(D4*G4, 0)","v":0}]
[null,null,"Munkanem összesen:",{"$nulls":4},{"$f":"ROUND(SUM(H2:H3),0)","v":0},{"$f":"ROUND(SUM(I2:I3),0)","v":0}]

{"sheet":"Napelem,inv,artó","index":3,"n_rows":10,"n_cols":9,"rows_kept":10,"cut":false,"hidden":false,"merged":[]}
["Ssz.","Tételszám","Tétel szövege","Menny.","Egység","Anyag egységár","Díj egységre","Anyag összesen","Díj összesen"]
[1,"K","Napelem modul Viessmann Vitovolt polikristályos napelem, teljesítmény: 250 Wp, 1652x994x46 mm, MC4",120,"db",null,null,{"$f":"ROUND(D2*F2, 0)","v":0},{"$f":"ROUND(D2*G2, 0)","v":0}]
[]
[2,"K","Fronius Symo galvanikus leválasztású háromfázisú hálózatba tápláló MPPT 2 db, webszewrveres 10 kW inverter",3,"db",null,null,{"$f":"ROUND(D4*F4, 0)","v":0},{"$f":"ROUND(D4*G4, 0)","v":0}]
[]
[3,"K","Schletter rögzítőkészlet magas tetőre kristályos napelemmodulokhoz (40x40 mm-es sínnel)",120,"kszl.",null,null,{"$f":"ROUND(D6*F6, 0)","v":0},{"$f":"ROUND(D6*G6, 0)","v":0}]
[]
[4,"K","Daruzás",1,"klts",null,null,{"$f":"ROUND(D8*F8, 0)","v":0},{"$f":"ROUND(D8*G8, 0)","v":0}]
[]
[null,null,"Munkanem összesen:",{"$nulls":4},{"$f":"SUM(H2:H9)","v":0},{"$f":"SUM(I2:I9)","v":0}]

{"sheet":"Elektromos energia ellátás, vil","index":4,"n_rows":51,"n_cols":9,"rows_kept":51,"cut":false,"hidden":false,"merged":[]}
["Ssz.","Tételszám","Tétel szövege","Menny.","Egység","Anyag egységár","Díj egységre","Anyag összesen","Díj összesen"]
[1,"71-001-24.2.2.-0535209","Műanyag vezetékcsatorna, padlószegélycsatorna elhelyezése előre elkészített tartószerkezetre szerelve, idomdarabokkal, szélesség:  41 - 70 mm-ig BOCO TA-GN  60x60 WO szerelvényezhető csatorna bord.alappal, fedéllel, 01784",22,"m",null,null,{"$f":"ROUND(D2*F2, 0)","v":0},{"$f":"ROUND(D2*G2, 0)","v":0}]
[]
[2,"71-001-48.2.1.1.2-0543192","Kábeltálca elhelyezése, tartószerkezet nélkül, bármely szélességben, idomok nélkül, külsőtéri használatra (nedves) korrózió veszélyes, ipari környezetbe, falra rögzítve, szélesség: 200 mm-ig, oldalmagasság: 60 mm OBO MKS 610 kábeltálca perforált 1,00 mm,",45,"m",null,null,{"$f":"ROUND(D4*F4, 0)","v":0},{"$f":"ROUND(D4*G4, 0)","v":0}]
[null,null,"60x100 mm, FT tűzihorganyzott, Cikkszám: 6055532 Elválasztó elemmel"]
[]
[3,"71-001-48.2.1.1.2-0543468","Kábeltálca tartószerkezetek elhelyezése, falra rögzítéshez OBO TPSA falikonzol 245 mm, FS szalaghorganyzott, Cikkszám: 6364209",45,"db",null,null,{"$f":"ROUND(D7*F7, 0)","v":0},{"$f":"ROUND(D7*G7, 0)","v":0}]
[]
[]
[3,"71-002-21.2-0221504","Szolár kábel elhelyezése előre elkészített tartószerkezetre,  csatlakozó vezetékvégek bekötése nélkül, keresztmetszet: 6 mm2 1x6 mm2 Szolár vezetéket ",280,"m",null,null,{"$f":"ROUND(D10*F10, 0)","v":0},{"$f":"ROUND(D10*G10, 0)","v":0}]
[]
[]
[4,"71-002-1.4-0213025","Szigetelt vezeték elhelyezése védőcsőbe húzva vagy vezetékcsatornába fektetve, rézvezetővel, leágazó kötésekkel, szigetelés ellenállás méréssel, a szerelvényekhez csatlakozó vezetékvégek bekötése nélkül, keresztmetszet: 25-35 mm2 H07V-K 450/750V 1x 25",22,"m",null,null,{"$f":"ROUND(D13*F13, 0)","v":0},{"$f":"ROUND(D13*G13, 0)","v":0}]
[null,null,"mm2, hajlékony rézvezetővel (Mkh)"]
[]
[5,"71-002-21.4-0221570","Kábelszerű vezeték elhelyezése előre elkészített tartószerkezetre, 1-12 erű rézvezetővel, elágazó dobozokkal és kötésekkel, szigetelési elenállás méréssel, a szerelvényekhez csatlakozó vezetékvégek bekötése nélkül, keresztmetszet: 10 mm2 NYY-J 5x  10 mm2,",30,"m",null,null,{"$f":"ROUND(D16*F16, 0)","v":0},{"$f":"ROUND(D16*G16, 0)","v":0}]
[null,null,"tömör rézvezetővel"]
[]
[6,"71-002-55.4-0336621","Műanyag szigetelésű energiaátviteli és irányítás-technikai kábel elhelyezése előre beépített tartószerkezetre, rögzítéssel, tömeghatár: 1,01-1,50 kg/m NYY-J 0,6/1 kV  5x 35 mm2",22,"m",null,null,{"$f":"ROUND(D19*F19, 0)","v":0},{"$f":"ROUND(D19*G19, 0)","v":0}]
[]
[7,"71-003-16.3.2-0632054","Solár csatlakozó szerelése",12,"pár",null,null,{"$f":"ROUND(D21*F21, 0)","v":0},{"$f":"ROUND(D21*G21, 0)","v":0}]
[]
[8,"71-003-1.1-0611706","Szerelési segédanyagok (csavarok, kötegelők, tiplik, stb.)",1,"db",null,null,{"$f":"ROUND(D23*F23, 0)","v":0},{"$f":"ROUND(D23*G23, 0)","v":0}]
[]
[9,"71-004-4.1-0150305","Vezeték és kábelkötegelők elhelyezése, UV védett kivitelben 3,5x250 fekete vezetékkötegelő",3,"csom.",null,null,{"$f":"ROUND(D25*F25, 0)","v":0},{"$f":"ROUND(D25*G25, 0)","v":0}]
[]
[10,"71-008-9.3.3-0623293","Főelosztó berendezés szükséges átalakítása bővítése. Acéllemez elosztószekrény elhelyezése, maszkolt kivitelben, 600X600X250, ajtóval. Beépítendő készülékek:  1 db 4PC50A kismegszakító, 1 db 4P 63A kapcsoló meghosszabbított rotációs hajtással, 1 db 3P100A szakaszoló biztosító, 1 db OBO MCD 50-B/3+1 túlfesz. Az elosztó szükséges vezetékezésével",1,"klts",null,null,{"$f":"ROUND(D27*F27, 0)","v":0},{"$f":"ROUND(D27*G27, 0)","v":0}]
[null,null,"A Főelosztó berendezésben a napelem leágazást a fázsjavítás leágazása elől kell kialakítani."]
[]
[11,"71-009-11.1-0622118","Tokozott elosztóberendezések, műanyag tokozatok elhelyezése, IP 54, illetve IP 65 védettséggel, Mi - elosztószekrények HENSEL Mi elosztószekrény,  \"AC1-3\" jelű elosztó. Beépítendő készülékek: 1 db 4P C16A kismegszakító, 1 db 4P25A/30mA ÁVK, 1 db OBO V20-C/3+NPE túlfesz. szükséges vezetkeléssel tömszelencékkel",3,"db",null,null,{"$f":"ROUND(D30*F30, 0)","v":0},{"$f":"ROUND(D30*G30, 0)","v":0}]
[]
[12,"71-009-11.1-0622118","Tokozott elosztóberendezések, műanyag tokozatok elhelyezése, IP 54, illetve IP 65 védettséggel, Mi - elosztószekrények HENSEL-ENYSUN elosztószekrény,  \"DC1-3\" jelű elosztó. Tartalma: SOL20/4MC63 kapcsoló, VG-C-DCPH túlfesz., 4 db 2P 10A olvadó a szükséges vezetékeléssel, tömszelencékkel",3,"db",null,null,{"$f":"ROUND(D32*F32, 0)","v":0},{"$f":"ROUND(D32*G32, 0)","v":0}]
[]
[13,"71-013-4.2.1-0310307","EPH vezető elhelyezése Mkh 10 mm2 ",125,"m",null,null,{"$f":"ROUND(D34*F34, 0)","v":0},{"$f":"ROUND(D34*G34, 0)","v":0}]
[]
[14,"71-013-7.3-0310386","Érintésvédelmi hálózat tartozékainak szerelése, fémhálózat földelő kötése 1 m Mkh 10 mm2 csatlakoztatható vezetékkel, 2 db saruval és csavarral",60,"db",null,null,{"$f":"ROUND(D36*F36, 0)","v":0},{"$f":"ROUND(D36*G36, 0)","v":0}]
[]
[15,"71-013-7.4","Érintésvédelmi hálózat tartozékainak szerelése, nagykiterjedésű fémtárgy földelő kötése",15,"db",null,null,{"$f":"ROUND(D38*F38, 0)","v":0},{"$f":"ROUND(D38*G38, 0)","v":0}]
[]
[16,"71-013-9","Meglévő villámvédelmi rendszer felülvizsgálata szükség szerinti átalakítása",1,"ö",null,null,{"$f":"ROUND(D40*F40, 0)","v":0},{"$f":"ROUND(D40*G40, 0)","v":0}]
[]
[17,"71-013-9","Áramszolgáltatói csatlakozási dokumentáció összeállítása",1,"ö",null,null,{"$f":"ROUND(D42*F42, 0)","v":0},{"$f":"ROUND(D42*G42, 0)","v":0}]
[]
[18,"71-013-9","SZTE Műszaki osztályával egyeztetett kiviteli tervdokumentáció készítése",1,"ö",null,null,{"$f":"ROUND(D44*F44, 0)","v":0},{"$f":"ROUND(D44*G44, 0)","v":0}]
[]
[19,"71-013-9","Áramszolgáltatói ügyintézés. Áramszogáltatónak szükséges dokumentáció összeállítása",1,"ö",null,null,{"$f":"ROUND(D46*F46, 0)","v":0},{"$f":"ROUND(D46*G46, 0)","v":0}]
[]
[20,"71-013-9","Átadási dokumentáció, MSZ60364 szerinti \"Első ellenőrzés\", szükséges mérések és jegyzőkönyvek készítése",1,"ö",null,null,{"$f":"ROUND(D48*F48, 0)","v":0},{"$f":"ROUND(D48*G48, 0)","v":0}]
[]
[21,"71-013-9","A helyszíni bejárás során az Ajánlatadó szerint a megvalósításhoz szükséges egyéb költségek:",1,"ö",null,null,{"$f":"ROUND(D50*F50, 0)","v":0},{"$f":"ROUND(D50*G50, 0)","v":0}]
[null,null,"Munkanem összesen:",{"$nulls":4},{"$f":"ROUND(SUM(H2:H48),0)","v":0},{"$f":"ROUND(SUM(I2:I48),0)","v":0}]

{"sheet":"Munka1","index":5,"n_rows":0,"n_cols":0,"rows_kept":0,"cut":false,"hidden":false,"merged":[]}

{"sheet":"Munka2","index":6,"n_rows":0,"n_cols":0,"rows_kept":0,"cut":false,"hidden":false,"merged":[]}

{"sheet":"Munka3","index":7,"n_rows":0,"n_cols":0,"rows_kept":0,"cut":false,"hidden":false,"merged":[]}